Workbook

Sheet Datos
A1: Año | B1: Rentabilidad
A2: 1 | B2: -18.00%
A3: 2 | B3: -26.00%
A4: 3 | B4: -12.00%
A5: 4 | B5: 5.00%
A6: 5 | B6: 12.00%
A7: 6 | B7: 15.00%
A8: 7 | B8: 16.00%
A9: 8 | B9: 18.00%
A10: 9 | B10: -22.00%
A11: 10 | B11: 25.00%
A12: 11 | B12: 22.00%
A13: 12 | B13: 20.00%
A14: 13 | B14: 18.00%
A15: 14 | B15: 17.00%
A16: 15 | B16: 15.00%
A17: 16 | B17: 12.00%
A18: 17 | B18: 10.00%
A19: 18 | B19: 21.00%
A20: 19 | B20: 19.00%
A21: 20 | B21: 15.00%
A22: 21 | B22: 11.00%
A23: 22 | B23: -7.00%
A24: 23 | B24: -10.00%
A25: 24 | B25: 4.00%
A26: 25 | B26: 4.00%

Sheet Regla4%
A1: Año | B1: Rentabilidad | C1: Capital Inicial | D1: Retirada | E1: Capital Final
A2: 1 | B2: =+Datos!B2 -> -18.00% | C2: 500,000 | D2: 20,000 | E2: =C2*(1+B2)-D2 -> 390,000
A3: 2 | B3: =+Datos!B3 -> -26.00% | C3: =E2 -> 390,000 | D3: =D2*1.02 -> 20,400 | E3: 268,200
A4: 3 | B4: =+Datos!B4 -> -12.00% | C4: =E3 -> 268,200 | D4: 20,808 | E4: =C4*(1+B4)-D4 -> 215,208
A5: 4 | B5: =+Datos!B5 -> 5.00% | C5: 215,208 | D5: 21,224 | E5: 204,744
A6: 5 | B6: =+Datos!B6 -> 12.00% | C6: 204,744 | D6: 21,649 | E6: 207,665
A7: 6 | B7: =+Datos!B7 -> 15.00% | C7: 207,665 | D7: 22,082 | E7: 216,733
A8: 7 | B8: =+Datos!B8 -> 16.00% | C8: 216,733 | D8: 22,523 | E8: 228,887
A9: 8 | B9: =+Datos!B9 -> 18.00% | C9: 228,887 | D9: 22,974 | E9: 247,113
A10: 9 | B10: =+Datos!B10 -> -22.00% | C10: 247,113 | D10: 23,433 | E10: 169,315
A11: 10 | B11: =+Datos!B11 -> 25.00% | C11: 169,315 | D11: 23,902 | E11: 187,742
A12: 11 | B12: =+Datos!B12 -> 22.00% | C12: 187,742 | D12: 24,380 | E12: 204,665
A13: 12 | B13: =+Datos!B13 -> 20.00% | C13: 204,665 | D13: 24,867 | E13: 220,731
A14: 13 | B14: =+Datos!B14 -> 18.00% | C14: 220,731 | D14: 25,365 | E14: 235,097
A15: 14 | B15: =+Datos!B15 -> 17.00% | C15: 235,097 | D15: 25,872 | E15: 249,192
A16: 15 | B16: =+Datos!B16 -> 15.00% | C16: 249,192 | D16: 26,390 | E16: 260,181
A17: 16 | B17: =+Datos!B17 -> 12.00% | C17: 260,181 | D17: 26,917 | E17: 264,485
A18: 17 | B18: =+Datos!B18 -> 10.00% | C18: 264,485 | D18: 27,456 | E18: 263,478
A19: 18 | B19: =+Datos!B19 -> 21.00% | C19: 263,478 | D19: 28,005 | E19: 290,804
A20: 19 | B20: =+Datos!B20 -> 19.00% | C20: 290,804 | D20: 28,565 | E20: 317,492
A21: 20 | B21: =+Datos!B21 -> 15.00% | C21: 317,492 | D21: 29,136 | E21: 335,979
A22: 21 | B22: =+Datos!B22 -> 11.00% | C22: 335,979 | D22: 29,719 | E22: 343,218
A23: 22 | B23: =+Datos!B23 -> -7.00% | C23: 343,218 | D23: 30,313 | E23: 288,879
A24: 23 | B24: =+Datos!B24 -> -10.00% | C24: 288,879 | D24: 30,920 | E24: 229,072
A25: 24 | B25: =+Datos!B25 -> 4.00% | C25: 229,072 | D25: 31,538 | E25: 206,697
A26: 25 | B26: =+Datos!B26 -> 4.00% | C26: 206,697 | D26: 32,169 | E26: 182,796

Sheet Guyton-Klinger
A1: Año | B1: Rentabilidad | C1: Capital Inicial | D1: Retirada | E1: Capital Final | F1: WR | G1: GuardSup | H1: GuardInf
A2: 1 | B2: =+Datos!B2 -> -18.00% | C2: 500,000 | D2: 20,000 | E2: =C2*(1+B2)-D2 -> 390,000 | F2: =+D2/C2 -> 0.04 | G2: 0.048 | H2: 0.032
A3: 2 | B3: =+Datos!B3 -> -26.00% | C3: =+E2 -> 390,000 | D3: =MAX( 15000, IF( F3>G3, D2*0.95, IF( F3<H3, D2*1.1, D2*1.02 ) ) ) -> 19,000 | E3: =C3*(1+B3)-D3 -> 269,600 | F3: =+D2/C3 -> 0.05 | G3: 0.048 | H3: 0.032
A4: 3 | B4: =+Datos!B4 -> -12.00% | C4: =+E3 -> 269,600 | D4: =MAX( 15000, IF( F4>G4, D3*0.95, IF( F4<H4, D3*1.1, D3*1.02 ) ) ) -> 18,050 | E4: =C4*(1+B4)-D4 -> 219,198 | F4: =+D3/C4 -> 0.07 | G4: 0.048 | H4: 0.032
A5: 4 | B5: =+Datos!B5 -> 5.00% | C5: 219,198 | D5: 17,148 | E5: 213,010 | F5: 0.08 | G5: 0.048 | H5: 0.032
A6: 5 | B6: =+Datos!B6 -> 12.00% | C6: 213,010 | D6: 16,290 | E6: 222,282 | F6: 0.08 | G6: 0.048 | H6: 0.032
A7: 6 | B7: =+Datos!B7 -> 15.00% | C7: 222,282 | D7: 15,476 | E7: 240,148 | F7: 0.07 | G7: 0.048 | H7: 0.032
A8: 7 | B8: =+Datos!B8 -> 16.00% | C8: 240,148 | D8: 15,000 | E8: 263,572 | F8: 0.06 | G8: 0.048 | H8: 0.032
A9: 8 | B9: =+Datos!B9 -> 18.00% | C9: 263,572 | D9: 15,000 | E9: 296,015 | F9: 0.06 | G9: 0.048 | H9: 0.032
A10: 9 | B10: =+Datos!B10 -> -22.00% | C10: 296,015 | D10: 15,000 | E10: 215,892 | F10: 0.05 | G10: 0.048 | H10: 0.032
A11: 10 | B11: =+Datos!B11 -> 25.00% | C11: 215,892 | D11: 15,000 | E11: 254,864 | F11: 0.07 | G11: 0.048 | H11: 0.032
A12: 11 | B12: =+Datos!B12 -> 22.00% | C12: 254,864 | D12: 15,000 | E12: 295,935 | F12: 0.06 | G12: 0.048 | H12: 0.032
A13: 12 | B13: =+Datos!B13 -> 20.00% | C13: 295,935 | D13: 15,000 | E13: 340,121 | F13: 0.05 | G13: 0.048 | H13: 0.032
A14: 13 | B14: =+Datos!B14 -> 18.00% | C14: 340,121 | D14: 15,300 | E14: 386,043 | F14: 0.04 | G14: 0.048 | H14: 0.032
A15: 14 | B15: =+Datos!B15 -> 17.00% | C15: 386,043 | D15: 15,606 | E15: 436,065 | F15: 0.04 | G15: 0.048 | H15: 0.032
A16: 15 | B16: =+Datos!B16 -> 15.00% | C16: 436,065 | D16: 15,918 | E16: 485,556 | F16: 0.04 | G16: 0.048 | H16: 0.032
A17: 16 | B17: =+Datos!B17 -> 12.00% | C17: 485,556 | D17: 16,236 | E17: 527,587 | F17: 0.03 | G17: 0.048 | H17: 0.032
A18: 17 | B18: =+Datos!B18 -> 10.00% | C18: 527,587 | D18: 17,860 | E18: 562,485 | F18: 0.03 | G18: 0.048 | H18: 0.032
A19: 18 | B19: =+Datos!B19 -> 21.00% | C19: 562,485 | D19: 19,646 | E19: 660,961 | F19: 0.03 | G19: 0.048 | H19: 0.032
A20: 19 | B20: =+Datos!B20 -> 19.00% | C20: 660,961 | D20: 21,611 | E20: 764,933 | F20: 0.03 | G20: 0.048 | H20: 0.032
A21: 20 | B21: =+Datos!B21 -> 15.00% | C21: 764,933 | D21: 23,772 | E21: 855,901 | F21: 0.03 | G21: 0.048 | H21: 0.032
A22: 21 | B22: =+Datos!B22 -> 11.00% | C22: 855,901 | D22: 26,149 | E22: 923,901 | F22: 0.03 | G22: 0.048 | H22: 0.032
A23: 22 | B23: =+Datos!B23 -> -7.00% | C23: 923,901 | D23: 28,764 | E23: 830,464 | F23: 0.03 | G23: 0.048 | H23: 0.032
A24: 23 | B24: =+Datos!B24 -> -10.00% | C24: 830,464 | D24: 29,339 | E24: 718,078 | F24: 0.03 | G24: 0.048 | H24: 0.032
A25: 24 | B25: =+Datos!B25 -> 4.00% | C25: 718,078 | D25: 29,926 | E25: 716,875 | F25: 0.04 | G25: 0.048 | H25: 0.032
A26: 25 | B26: =+Datos!B26 -> 4.00% | C26: 716,875 | D26: 30,525 | E26: 715,026 | F26: 0.04 | G26: 0.048 | H26: 0.032

Sheet Ratchet
A1: Año | B1: Rentabilidad | C1: Capital Inicial | D1: Retirada | E1: Capital Final | F1: MaxNominal
A2: 1 | B2: =+Datos!B2 -> -18.00% | C2: 500,000 | D2: 20,000 | E2: =C2*(1+B2)-D2 -> 390,000 | F2: =+C2 -> 500,000
A3: 2 | B3: =+Datos!B3 -> -26.00% | C3: =E2 -> 390,000 | D3: =IF(C3>F2*0.9, D2*1.02, D2) -> 20,000 | E3: =C3*(1+B3)-D3 -> 268,600 | F3: =MAX(F2,C3) -> 500,000
A4: 3 | B4: =+Datos!B4 -> -12.00% | C4: =E3 -> 268,600 | D4: =IF(C4>F3*0.9, D3*1.02, D3) -> 20,000 | E4: =C4*(1+B4)-D4 -> 216,368 | F4: =MAX(F3,C4) -> 500,000
A5: 4 | B5: =+Datos!B5 -> 5.00% | C5: 216,368 | D5: 20,000 | E5: 207,186 | F5: 500,000
A6: 5 | B6: =+Datos!B6 -> 12.00% | C6: 207,186 | D6: 20,000 | E6: 212,049 | F6: 500,000
A7: 6 | B7: =+Datos!B7 -> 15.00% | C7: 212,049 | D7: 20,000 | E7: 223,856 | F7: 500,000
A8: 7 | B8: =+Datos!B8 -> 16.00% | C8: 223,856 | D8: 20,000 | E8: 239,673 | F8: 500,000
A9: 8 | B9: =+Datos!B9 -> 18.00% | C9: 239,673 | D9: 20,000 | E9: 262,814 | F9: 500,000
A10: 9 | B10: =+Datos!B10 -> -22.00% | C10: 262,814 | D10: 20,000 | E10: 184,995 | F10: 500,000
A11: 10 | B11: =+Datos!B11 -> 25.00% | C11: 184,995 | D11: 20,000 | E11: 211,244 | F11: 500,000
A12: 11 | B12: =+Datos!B12 -> 22.00% | C12: 211,244 | D12: 20,000 | E12: 237,717 | F12: 500,000
A13: 12 | B13: =+Datos!B13 -> 20.00% | C13: 237,717 | D13: 20,000 | E13: 265,261 | F13: 500,000
A14: 13 | B14: =+Datos!B14 -> 18.00% | C14: 265,261 | D14: 20,000 | E14: 293,008 | F14: 500,000
A15: 14 | B15: =+Datos!B15 -> 17.00% | C15: 293,008 | D15: 20,000 | E15: 322,819 | F15: 500,000
A16: 15 | B16: =+Datos!B16 -> 15.00% | C16: 322,819 | D16: 20,000 | E16: 351,242 | F16: 500,000
A17: 16 | B17: =+Datos!B17 -> 12.00% | C17: 351,242 | D17: 20,000 | E17: 373,391 | F17: 500,000
A18: 17 | B18: =+Datos!B18 -> 10.00% | C18: 373,391 | D18: 20,000 | E18: 390,730 | F18: 500,000
A19: 18 | B19: =+Datos!B19 -> 21.00% | C19: 390,730 | D19: 20,000 | E19: 452,784 | F19: 500,000
A20: 19 | B20: =+Datos!B20 -> 19.00% | C20: 452,784 | D20: 20,400 | E20: 518,413 | F20: 500,000
A21: 20 | B21: =+Datos!B21 -> 15.00% | C21: 518,413 | D21: 20,808 | E21: 575,367 | F21: 518,413
A22: 21 | B22: =+Datos!B22 -> 11.00% | C22: 575,367 | D22: 21,224 | E22: 617,433 | F22: 575,367
A23: 22 | B23: =+Datos!B23 -> -7.00% | C23: 617,433 | D23: 21,649 | E23: 552,564 | F23: 617,433
A24: 23 | B24: =+Datos!B24 -> -10.00% | C24: 552,564 | D24: 21,649 | E24: 475,659 | F24: 617,433
A25: 24 | B25: =+Datos!B25 -> 4.00% | C25: 475,659 | D25: 21,649 | E25: 473,037 | F25: 617,433
A26: 25 | B26: =+Datos!B26 -> 4.00% | C26: 473,037 | D26: 21,649 | E26: 470,309 | F26: 617,433

Sheet Graficos OK
A1: Años | B1: Regal 4% | C1: Guyton-K | D1: Ratchet
A2: 1 | B2: =+'Regla4%'!E2 -> 390,000 | C2: =+'Guyton-Klinger'!E2 -> 390,000 | D2: =+Ratchet!E2 -> 390,000
A3: 2 | B3: =+'Regla4%'!E3 -> 268,200 | C3: =+'Guyton-Klinger'!E3 -> 269,600 | D3: =+Ratchet!E3 -> 268,600
A4: 3 | B4: =+'Regla4%'!E4 -> 215,208 | C4: =+'Guyton-Klinger'!E4 -> 219,198 | D4: =+Ratchet!E4 -> 216,368
A5: 4 | B5: =+'Regla4%'!E5 -> 204,744 | C5: =+'Guyton-Klinger'!E5 -> 213,010 | D5: =+Ratchet!E5 -> 207,186
A6: 5 | B6: =+'Regla4%'!E6 -> 207,665 | C6: =+'Guyton-Klinger'!E6 -> 222,282 | D6: =+Ratchet!E6 -> 212,049
A7: 6 | B7: =+'Regla4%'!E7 -> 216,733 | C7: =+'Guyton-Klinger'!E7 -> 240,148 | D7: =+Ratchet!E7 -> 223,856
A8: 7 | B8: =+'Regla4%'!E8 -> 228,887 | C8: =+'Guyton-Klinger'!E8 -> 263,572 | D8: =+Ratchet!E8 -> 239,673
A9: 8 | B9: =+'Regla4%'!E9 -> 247,113 | C9: =+'Guyton-Klinger'!E9 -> 296,015 | D9: =+Ratchet!E9 -> 262,814
A10: 9 | B10: =+'Regla4%'!E10 -> 169,315 | C10: =+'Guyton-Klinger'!E10 -> 215,892 | D10: =+Ratchet!E10 -> 184,995
A11: 10 | B11: =+'Regla4%'!E11 -> 187,742 | C11: =+'Guyton-Klinger'!E11 -> 254,864 | D11: =+Ratchet!E11 -> 211,244
A12: 11 | B12: =+'Regla4%'!E12 -> 204,665 | C12: =+'Guyton-Klinger'!E12 -> 295,935 | D12: =+Ratchet!E12 -> 237,717
A13: 12 | B13: =+'Regla4%'!E13 -> 220,731 | C13: =+'Guyton-Klinger'!E13 -> 340,121 | D13: =+Ratchet!E13 -> 265,261
A14: 13 | B14: =+'Regla4%'!E14 -> 235,097 | C14: =+'Guyton-Klinger'!E14 -> 386,043 | D14: =+Ratchet!E14 -> 293,008
A15: 14 | B15: =+'Regla4%'!E15 -> 249,192 | C15: =+'Guyton-Klinger'!E15 -> 436,065 | D15: =+Ratchet!E15 -> 322,819
A16: 15 | B16: =+'Regla4%'!E16 -> 260,181 | C16: =+'Guyton-Klinger'!E16 -> 485,556 | D16: =+Ratchet!E16 -> 351,242
A17: 16 | B17: =+'Regla4%'!E17 -> 264,485 | C17: =+'Guyton-Klinger'!E17 -> 527,587 | D17: =+Ratchet!E17 -> 373,391
A18: 17 | B18: =+'Regla4%'!E18 -> 263,478 | C18: =+'Guyton-Klinger'!E18 -> 562,485 | D18: =+Ratchet!E18 -> 390,730
A19: 18 | B19: =+'Regla4%'!E19 -> 290,804 | C19: =+'Guyton-Klinger'!E19 -> 660,961 | D19: =+Ratchet!E19 -> 452,784
A20: 19 | B20: =+'Regla4%'!E20 -> 317,492 | C20: =+'Guyton-Klinger'!E20 -> 764,933 | D20: =+Ratchet!E20 -> 518,413
A21: 20 | B21: =+'Regla4%'!E21 -> 335,979 | C21: =+'Guyton-Klinger'!E21 -> 855,901 | D21: =+Ratchet!E21 -> 575,367
A22: 21 | B22: =+'Regla4%'!E22 -> 343,218 | C22: =+'Guyton-Klinger'!E22 -> 923,901 | D22: =+Ratchet!E22 -> 617,433
A23: 22 | B23: =+'Regla4%'!E23 -> 288,879 | C23: =+'Guyton-Klinger'!E23 -> 830,464 | D23: =+Ratchet!E23 -> 552,564
A24: 23 | B24: =+'Regla4%'!E24 -> 229,072 | C24: =+'Guyton-Klinger'!E24 -> 718,078 | D24: =+Ratchet!E24 -> 475,659
A25: 24 | B25: =+'Regla4%'!E25 -> 206,697 | C25: =+'Guyton-Klinger'!E25 -> 716,875 | D25: =+Ratchet!E25 -> 473,037
A26: 25 | B26: =+'Regla4%'!E26 -> 182,796 | C26: =+'Guyton-Klinger'!E26 -> 715,026 | D26: =+Ratchet!E26 -> 470,309 | E26: capital final
A31: Años | B31: Regal 4% | C31: Guyton-K | D31: Ratchet
A32: 1 | B32: =+'Regla4%'!D2 -> 20,000 | C32: =+'Guyton-Klinger'!D2 -> 20,000 | D32: =+Ratchet!D2 -> 20,000
A33: 2 | B33: =+'Regla4%'!D3 -> 20,400 | C33: =+'Guyton-Klinger'!D3 -> 19,000 | D33: =+Ratchet!D3 -> 20,000
A34: 3 | B34: =+'Regla4%'!D4 -> 20,808 | C34: =+'Guyton-Klinger'!D4 -> 18,050 | D34: =+Ratchet!D4 -> 20,000
A35: 4 | B35: =+'Regla4%'!D5 -> 21,224 | C35: =+'Guyton-Klinger'!D5 -> 17,148 | D35: =+Ratchet!D5 -> 20,000
A36: 5 | B36: =+'Regla4%'!D6 -> 21,649 | C36: =+'Guyton-Klinger'!D6 -> 16,290 | D36: =+Ratchet!D6 -> 20,000
A37: 6 | B37: =+'Regla4%'!D7 -> 22,082 | C37: =+'Guyton-Klinger'!D7 -> 15,476 | D37: =+Ratchet!D7 -> 20,000
A38: 7 | B38: =+'Regla4%'!D8 -> 22,523 | C38: =+'Guyton-Klinger'!D8 -> 15,000 | D38: =+Ratchet!D8 -> 20,000
A39: 8 | B39: =+'Regla4%'!D9 -> 22,974 | C39: =+'Guyton-Klinger'!D9 -> 15,000 | D39: =+Ratchet!D9 -> 20,000
A40: 9 | B40: =+'Regla4%'!D10 -> 23,433 | C40: =+'Guyton-Klinger'!D10 -> 15,000 | D40: =+Ratchet!D10 -> 20,000
A41: 10 | B41: =+'Regla4%'!D11 -> 23,902 | C41: =+'Guyton-Klinger'!D11 -> 15,000 | D41: =+Ratchet!D11 -> 20,000
A42: 11 | B42: =+'Regla4%'!D12 -> 24,380 | C42: =+'Guyton-Klinger'!D12 -> 15,000 | D42: =+Ratchet!D12 -> 20,000
A43: 12 | B43: =+'Regla4%'!D13 -> 24,867 | C43: =+'Guyton-Klinger'!D13 -> 15,000 | D43: =+Ratchet!D13 -> 20,000
A44: 13 | B44: =+'Regla4%'!D14 -> 25,365 | C44: =+'Guyton-Klinger'!D14 -> 15,300 | D44: =+Ratchet!D14 -> 20,000
A45: 14 | B45: =+'Regla4%'!D15 -> 25,872 | C45: =+'Guyton-Klinger'!D15 -> 15,606 | D45: =+Ratchet!D15 -> 20,000
A46: 15 | B46: =+'Regla4%'!D16 -> 26,390 | C46: =+'Guyton-Klinger'!D16 -> 15,918 | D46: =+Ratchet!D16 -> 20,000
A47: 16 | B47: =+'Regla4%'!D17 -> 26,917 | C47: =+'Guyton-Klinger'!D17 -> 16,236 | D47: =+Ratchet!D17 -> 20,000
A48: 17 | B48: =+'Regla4%'!D18 -> 27,456 | C48: =+'Guyton-Klinger'!D18 -> 17,860 | D48: =+Ratchet!D18 -> 20,000
A49: 18 | B49: =+'Regla4%'!D19 -> 28,005 | C49: =+'Guyton-Klinger'!D19 -> 19,646 | D49: =+Ratchet!D19 -> 20,000
A50: 19 | B50: =+'Regla4%'!D20 -> 28,565 | C50: =+'Guyton-Klinger'!D20 -> 21,611 | D50: =+Ratchet!D20 -> 20,400
A51: 20 | B51: =+'Regla4%'!D21 -> 29,136 | C51: =+'Guyton-Klinger'!D21 -> 23,772 | D51: =+Ratchet!D21 -> 20,808
A52: 21 | B52: =+'Regla4%'!D22 -> 29,719 | C52: =+'Guyton-Klinger'!D22 -> 26,149 | D52: =+Ratchet!D22 -> 21,224
A53: 22 | B53: =+'Regla4%'!D23 -> 30,313 | C53: =+'Guyton-Klinger'!D23 -> 28,764 | D53: =+Ratchet!D23 -> 21,649
A54: 23 | B54: =+'Regla4%'!D24 -> 30,920 | C54: =+'Guyton-Klinger'!D24 -> 29,339 | D54: =+Ratchet!D24 -> 21,649
A55: 24 | B55: =+'Regla4%'!D25 -> 31,538 | C55: =+'Guyton-Klinger'!D25 -> 29,926 | D55: =+Ratchet!D25 -> 21,649
A56: 25 | B56: =+'Regla4%'!D26 -> 32,169 | C56: =+'Guyton-Klinger'!D26 -> 30,525 | D56: =+Ratchet!D26 -> 21,649
A57: SUMA | B57: =+SUM(B32:B56) -> 640,606 | C57: =+SUM(C32:C56) -> 486,615 | D57: 509,027 | E57: suma retiradas
